fUSD/lending_fUSD_20250611
["ID","MTS","AMOUNT","RATE_DAILY","PERIOD"]
[365421562,1749661867405,-589.33,0.00019835,2]
[365421563,1749661867414,-546.8,0.00019835,2]
[365421564,1749661867425,-490.0,0.00019835,2]
[365421565,1749661867435,-942.32,0.00019835,2]
[365421566,1749661867444,-549.1,0.00019835,2]
[365421567,1749661867453,-490.0,0.00019835,2]
[365421568,1749661867462,-490.0,0.00019835,2]
[365421569,1749661867471,-5794.97,0.00019835,2]
[365421570,1749661867480,-490.0,0.00019835,2]
[365421571,1749661867490,-490.0,0.00019835,2]
[365421572,1749661867500,-490.0,0.00019835,2]
[365421573,1749661867510,-490.0,0.00019835,2]
[365421574,1749661867519,-490.0,0.00019835,2]
[365421575,1749661867529,-490.0,0.00019835,2]
[365421576,1749661867538,-490.0,0.00019835,2]
[365421577,1749661867548,-490.0,0.00019835,2]
[365421578,1749661867557,-490.0,0.00019835,2]
[365421579,1749661867566,-1159.67,0.00019835,2]
[365421580,1749661867576,-1337.03,0.00019835,2]
[365421581,1749661867585,-610.72,0.00019835,2]
[365421582,1749661867595,-490.0,0.00019835,2]
[365421583,1749661867604,-490.0,0.00019835,2]
[365421584,1749661867615,-490.0,0.00019835,2]
[365421585,1749661867624,-490.0,0.00019835,2]
[365421586,1749661867634,-630.63,0.00019835,2]
[365421587,1749661867644,-598.63,0.00019835,2]
[365421588,1749661867653,-490.0,0.00019835,2]
[365421589,1749661867662,-539.21,0.00019835,2]
[365421590,1749661867672,-490.0,0.00019835,2]
[365421591,1749661867681,-490.0,0.00019835,2]
[365421592,1749661867691,-672.97,0.00019835,2]
[365421593,1749661867704,-490.0,0.00019835,2]
[365421594,1749661867713,-702.48,0.00019835,2]
[365421595,1749661867722,-709.1,0.00019835,2]
[365421596,1749661867732,-533.7,0.00019835,2]
[365421597,1749661867743,-770.58,0.00019835,2]
[365421598,1749661867752,-490.0,0.00019835,2]
[365421599,1749661867761,-490.0,0.00019835,2]
[365421600,1749661867771,-490.0,0.00019835,2]
[365421601,1749661867781,-490.0,0.00019835,2]
[365421602,1749661867790,-490.0,0.00019835,2]
[365421603,1749661867799,-276.12473332,0.00019835,2]
[365421604,1749662052397,203.0,0.00016442,2]
[365421605,1749662181843,1078.0,0.00016245,2]
[365421606,1749662186451,1078.0,0.00016,2]
[365421607,1749662190957,1078.0,0.00016,2]
[365421608,1749662195511,1078.0,0.00016,2]
[365421609,1749662281063,164.72008625,0.0001592,2]
[365421610,1749662321515,200.0,0.00016442,2]
[365421611,1749662358971,2166.21,0.00024656,120]
[365421612,1749662390491,194.53,0.00016712,2]
[365421613,1749662393548,298.70619844,0.000246,120]
[365421614,1749662412361,204.0,0.00016432,2]
[365421615,1749662445478,1386.65,0.00016126,2]
[365421616,1749662549826,398.14,0.00013699,2]
[365421620,1749662641569,1378.85507873,0.00024657,120]
[365421623,1749662681442,200.0,0.00016432,2]
[365421624,1749662711565,201.0,0.00016432,2]
[365421625,1749662772505,204.0,0.00016422,2]
[365421626,1749662840162,-1078.0,0.000171,2]
[365421627,1749662840184,-204.0,0.00017436,3]
[365421628,1749662840206,-164.87,0.00017688,2]
[365421629,1749662840228,-541.35,0.00017703,2]
[365421630,1749662840249,-873.95752359,0.00017703,2]
[365421631,1749662840272,-666.0,0.00017703,2]
[365421632,1749662840295,-1200.0,0.00017769,2]
[365421633,1749662840317,-300.0,0.00017769,2]
[365421634,1749662840342,-300.0,0.00017769,2]
[365421635,1749662840364,-543.26840294,0.0001777,2]
[365421636,1749662840386,-500.0,0.0001777,2]
[365421637,1749662840408,-500.0,0.0001777,2]
[365421638,1749662840429,-500.0,0.0001777,2]
[365421639,1749662840451,-500.0,0.0001777,2]
[365421640,1749662840473,-198.13575932,0.0001777,2]
[365421641,1749662843156,-429.95063999,0.0001777,2]
[365421642,1749662843177,-500.0,0.0001777,2]
[365421643,1749662843199,-374.960201,0.0001777,2]
[365421666,1749663031475,-160.60712876,0.00017671,2]
[365421667,1749663031484,-200.0,0.000177,2]
[365421668,1749663031493,-144.17607232,0.0001772,2]
[365421669,1749663031504,-155.82392768,0.0001772,2]
[365421670,1749663031514,-1200.0,0.00017769,2]
[365421671,1749663031523,-125.039799,0.0001777,2]
[365421672,1749663031532,-500.0,0.0001777,2]
[365421673,1749663031541,-483.36701,0.0001777,2]
[365421674,1749663031550,-14.34709588,0.0001777,2]
[365421675,1749663031560,-212.05944532,0.0001777,2]
[365421676,1749663031569,-421.39731035,0.0001777,2]
[365421677,1749663031578,-567.96852781,0.00017771,2]
[365421678,1749663031818,-23332.03147219,0.00017771,2]
[365421679,1749663031828,-300.0,0.00017802,2]
[365421680,1749663031837,-304.1,0.000179,2]
[365421681,1749663031846,-502.05,0.000179,2]
[365421682,1749663031856,-499.45,0.000179,2]
[365421683,1749663031865,-1000.0,0.00017979,2]
[365421684,1749663031874,-7982.93827668,0.0001798,2]
[365421685,1749663031883,-1078.0,0.00018,2]
[365421686,1749663031893,-156.42,0.00018,2]
[365421687,1749663031902,-2797.2,0.00018,2]
[365421689,1749663031912,-792.17,0.00018013,2]
[365421691,1749663031921,-250.0,0.00018044,2]
[365421693,1749663031930,-1387.73,0.00018044,2]
[365421694,1749663031939,-1599.32,0.00018044,2]
[365421695,1749663031948,-590.0,0.00018156,2]
[365421696,1749663031958,-168.0,0.00018271,2]
[365421697,1749663031967,-454.1,0.00018333,2]
[365421698,1749663031976,-1386.65,0.0001839,2]
[365421699,1749663031986,-204.0,0.00018449,4]
[365421700,1749663031995,-14000.0,0.000185,2]
[365421701,1749663032005,-168.0,0.00018598,2]
[365421702,1749663032014,-152.0,0.00018616,3]
[365421704,1749663032024,-165.81,0.00018661,2]
[365421706,1749663032033,-300.0,0.0001881,2]
[365421708,1749663032044,-250.0,0.0001881,2]
[365421709,1749663032053,-207.4,0.00018832,2]
[365421710,1749663032062,-151.0,0.00018832,2]
[365421711,1749663032072,-151.0,0.00018832,2]
[365421712,1749663032081,-1957.856,0.00018832,2]
[365421713,1749663032092,-500.0,0.00018832,2]
[365421714,1749663032102,-500.0,0.00018832,2]
[365421715,1749663032112,-500.0,0.00018832,2]
[365421716,1749663032121,-500.0,0.00018832,2]
[365421717,1749663032130,-500.0,0.00018832,2]
[365421718,1749663032139,-500.0,0.00018832,2]
[365421719,1749663032148,-500.0,0.00018832,2]
[365421720,1749663032157,-500.0,0.00018832,2]
[365421721,1749663032167,-602.15084188,0.00018832,2]
[365421722,1749663032176,-500.0,0.00018832,2]
[365421723,1749663032185,-500.0,0.00018832,2]
[365421724,1749663032194,-500.0,0.00018832,2]
[365421725,1749663032202,-500.0,0.00018832,2]
[365421726,1749663032211,-500.0,0.00018832,2]
[365421727,1749663032221,-500.0,0.00018832,2]
[365421728,1749663032229,-500.0,0.00018832,2]
[365421729,1749663032238,-500.0,0.00018832,2]
[365421730,1749663032247,-500.0,0.00018832,2]
[365421731,1749663032256,-500.0,0.00018832,2]
[365421732,1749663032265,-500.0,0.00018832,2]
[365421733,1749663032275,-750.0,0.00018832,2]
[365421734,1749663032284,-191.41445444,0.00018832,2]
[365421735,1749663032293,-500.0,0.00018832,2]
[365421736,1749663032302,-750.0,0.00018832,2]
[365421737,1749663032311,-500.0,0.00018832,2]
[365421738,1749663032320,-750.0,0.00018832,2]
[365421739,1749663032329,-750.0,0.00018832,2]
[365421740,1749663032338,-500.0,0.00018832,2]
[365421741,1749663032347,-750.0,0.00018832,2]
[365421742,1749663032356,-750.0,0.00018832,2]
[365421743,1749663032366,-165.61860727,0.00018832,2]
[365421744,1749663032375,-646.79596107,0.00018832,2]
[365421745,1749663032384,-300.0,0.00018832,2]
[365421746,1749663032393,-300.0,0.00018832,2]
[365421747,1749663032402,-300.0,0.00018832,2]
[365421748,1749663032411,-300.0,0.00018832,2]
[365421749,1749663032420,-668.65185757,0.00018832,2]
[365421750,1749663032429,-300.0,0.00018832,2]
[365421751,1749663032438,-300.0,0.00018832,2]
[365421752,1749663032447,-300.0,0.00018832,2]
[365421753,1749663032456,-300.0,0.00018832,2]
[365421754,1749663032465,-159.61831628,0.00018832,2]
[365421755,1749663032474,-151.0,0.00018832,2]
[365421756,1749663032482,-2030.296672,0.00018887,2]
[365421757,1749663032491,-1078.0,0.000189,2]
[365421758,1749663032500,-153.95233308,0.000189,2]
[365421759,1749663032509,-888.00154338,0.000189,2]
[365421760,1749663032518,-585.55226982,0.00018926,2]
[365421761,1749663032528,-888.00154334,0.00018934,2]
[365421762,1749663032537,-2105.41764886,0.00018942,2]
[365421763,1749663032546,-888.00154334,0.00018969,2]
[365421764,1749663032555,-2893.09656283,0.00018978,2]
[365421765,1749663032565,-227.8361,0.00018978,2]
[365421766,1749663032574,-1000.0,0.00018987,2]
[365421767,1749663032583,-2183.31810187,0.00018997,2]
[365421768,1749663032592,-305.68,0.00018999,2]
[365421769,1749663032601,-990.11,0.00019,2]
[365421770,1749663032610,-250.0,0.00019,2]
[365421771,1749663032619,-888.00154334,0.00019003,2]
[365421772,1749663032628,-888.00154334,0.00019038,2]
[365421773,1749663032637,-2264.10087164,0.00019052,2]
[365421774,1749663032646,-225.0,0.00019067,2]
[365421775,1749663032655,-888.00154334,0.00019072,2]
[365421776,1749663032664,-166.56336971,0.00019078,2]
[365421777,1749663032673,-345.39524375,0.00019078,2]
[365421778,1749663032682,-169.76028053,0.00019078,2]
[365421779,1749663032692,-46132.6529,0.00019078,2]
[365421780,1749663032701,-1000.0,0.00019078,2]
[365421781,1749663032710,-2893.09656274,0.0001908,2]
[365421782,1749663032719,-168.0,0.00019084,2]
[365421783,1749663032728,-888.00154334,0.00019107,2]
[365421784,1749663032737,-2347.87260389,0.00019107,2]
[365421785,1749663032746,-888.00154334,0.00019141,2]
[365421786,1749663032755,-2434.74389024,0.00019162,2]
[365421787,1749663032764,-1115.89388293,0.00019166,2]
[365421788,1749663032774,-44378.42840603,0.00019169,2]
[365421789,1749663032783,-345.39524372,0.00019169,2]
[365421790,1749663032792,-500.0,0.00019173,2]
[365421791,1749663032801,-500.0,0.00019173,2]
[365421792,1749663032810,-888.00154334,0.00019176,2]
[365421793,1749663032819,-167.7,0.00019177,2]
[365421794,1749663032828,-426.40643877,0.00019178,2]
[365421795,1749663032837,-407.81912865,0.00019178,2]
[365421796,1749663032846,-268.50438759,0.00019178,2]
[365421797,1749663032855,-490.0,0.00019178,2]
[365421798,1749663032864,-424.95325767,0.00019178,2]
[365421799,1749663032874,-490.0,0.00019178,2]
[365421800,1749663032883,-490.0,0.00019178,2]
[365421801,1749663032892,-490.0,0.00019178,2]
[365421802,1749663032902,-420.0,0.00019178,2]
[365421803,1749663032911,-480.0,0.00019178,2]
[365421804,1749663032920,-490.0,0.00019178,2]
[365421805,1749663032929,-490.0,0.00019178,2]
[365421806,1749663032938,-480.0,0.00019178,2]
[365421807,1749663032948,-490.0,0.00019178,2]
[365421808,1749663032957,-480.0,0.00019178,2]
[365421809,1749663032966,-490.0,0.00019178,2]
[365421810,1749663032975,-490.0,0.00019178,2]
[365421811,1749663032985,-420.84817962,0.00019178,2]
[365421812,1749663032994,-490.0,0.00019178,2]
[365421813,1749663033003,-480.0,0.00019178,2]
[365421814,1749663033013,-480.0,0.00019178,2]
[365421815,1749663033022,-480.0,0.00019178,2]
[365421816,1749663033032,-480.0,0.00019178,2]
[365421817,1749663033042,-489.37494563,0.00019178,2]
[365421818,1749663033054,-360.0,0.00019178,2]
[365421819,1749663033064,-460.0,0.00019178,2]
[365421820,1749663033074,-426.05394103,0.00019178,2]
[365421821,1749663033084,-408.78384621,0.00019178,2]
[365421822,1749663033095,-480.0,0.00019178,2]
[365421823,1749663033105,-395.84056149,0.00019178,2]
[365421824,1749663033117,-480.0,0.00019178,2]
[365421825,1749663033127,-400.92756822,0.00019178,2]
[365421826,1749663033137,-480.0,0.00019178,2]
[365421827,1749663033147,-182.06497024,0.00019178,2]
[365421828,1749663033156,-490.0,0.00019178,2]
[365421829,1749663033165,-731.44,0.00019178,2]
[365421830,1749663033176,-490.0,0.00019178,2]
[365421831,1749663033186,-250.0,0.00019178,2]
[365421832,1749663033196,-490.0,0.00019178,2]
[365421833,1749663033206,-480.0,0.00019178,2]
[365421834,1749663033215,-490.0,0.00019178,2]
[365421835,1749663033225,-490.0,0.00019178,2]
[365421836,1749663033234,-480.0,0.00019178,2]
[365421837,1749663033244,-361.63024177,0.00019178,2]
[365421838,1749663033254,-490.0,0.00019178,2]
[365421839,1749663033264,-490.0,0.00019178,2]
[365421840,1749663033274,-490.0,0.00019178,2]
[365421841,1749663033283,-480.0,0.00019178,2]
[365421842,1749663033293,-490.0,0.00019178,2]
[365421843,1749663033303,-490.0,0.00019178,2]
[365421844,1749663033313,-333.2918496,0.00019178,2]
[365421845,1749663033322,-490.0,0.00019178,2]
[365421846,1749663033332,-490.0,0.00019178,2]
[365421847,1749663033341,-490.0,0.00019178,2]
[365421848,1749663033351,-480.0,0.00019178,2]
[365421849,1749663033361,-480.0,0.00019178,2]
[365421850,1749663033371,-480.0,0.00019178,2]
[365421851,1749663033381,-351.78126626,0.00019178,2]
[365421852,1749663033391,-500.0,0.00019178,2]
[365421853,1749663033400,-500.0,0.00019178,2]
[365421854,1749663033409,-500.0,0.00019178,2]
[365421855,1749663033419,-500.0,0.00019178,2]
[365421856,1749663033429,-500.0,0.00019178,2]
[365421857,1749663033438,-500.0,0.00019178,2]
[365421858,1749663033448,-500.0,0.00019178,2]
[365421859,1749663033457,-500.0,0.00019178,2]
[365421860,1749663033467,-500.0,0.00019178,2]
[365421861,1749663033476,-500.0,0.00019178,2]
[365421862,1749663033485,-500.0,0.00019178,2]
[365421863,1749663033495,-500.0,0.00019178,2]
[365421864,1749663033504,-500.0,0.00019178,2]
[365421865,1749663033514,-404.78274197,0.00019178,2]
[365421866,1749663033525,-500.0,0.00019178,2]
[365421867,1749663033535,-442.53286618,0.00019178,2]
[365421868,1749663033933,-57.46713382,0.00019178,2]
[365421869,1749663033943,-251.3734676,0.00019178,2]
[365421870,1749663033989,-248.6265324,0.00019178,2]
[365421871,1749663033999,-3.98979927,0.00019178,2]
[365421872,1749663037481,-204.97217066,0.00018941,2]
[365421873,1749663037490,-86.95910378,0.00018941,2]
[365421874,1749663037536,-147.79352873,0.00018941,2]
[365421875,1749663037546,-500.0,0.00018941,2]
[365421876,1749663037555,-261.94227759,0.00018941,2]
[365421877,1749663037565,-500.0,0.00018941,2]
[365421878,1749663037574,-500.0,0.00018941,2]
[365421879,1749663037583,-518.84137281,0.00018941,2]
[365421880,1749663037592,-500.0,0.00018941,2]
[365421881,1749663037602,-492.48232965,0.00019178,2]
[365421882,1749663037613,-3.52787108,0.00019178,2]
[365421883,1749663037623,-500.0,0.00019178,2]
[365421884,1749663037633,-478.02140944,0.00019178,2]
[365421885,1749663037648,-21.97859056,0.00019178,2]
[365421886,1749663037658,-500.0,0.00019178,2]
[365421887,1749663037667,-500.0,0.00019178,2]
[365421888,1749663037676,-500.0,0.00019178,2]
[365421889,1749663037686,-500.0,0.00019178,2]
[365421890,1749663037695,-500.0,0.00019178,2]
[365421891,1749663037705,-500.0,0.00019178,2]
[365421892,1749663037714,-500.0,0.00019178,2]
[365421893,1749663037723,-500.0,0.00019178,2]
[365421894,1749663037732,-500.0,0.00019178,2]
[365421895,1749663037742,-500.0,0.00019178,2]
[365421896,1749663037751,-500.0,0.00019178,2]
[365421897,1749663037761,-500.0,0.00019178,2]
[365421898,1749663037772,-500.0,0.00019178,2]
[365421899,1749663037782,-480.0,0.00019178,2]
[365421900,1749663037791,-480.0,0.00019178,2]
[365421901,1749663037800,-490.0,0.00019178,2]
[365421902,1749663037810,-490.0,0.00019178,2]
[365421903,1749663037819,-238.51883787,0.00019178,2]
[365421904,1749663037827,-490.0,0.00019178,2]
[365421905,1749663037837,-480.0,0.00019178,2]
[365421906,1749663037847,-490.0,0.00019178,2]
[365421907,1749663037856,-480.0,0.00019178,2]
[365421908,1749663037865,-480.0,0.00019178,2]
[365421910,1749663037874,-490.0,0.00019178,2]
[365421937,1749663038113,-490.0,0.00019178,2]
[365421939,1749663038123,-226.59042316,0.00019178,2]
[365421941,1749663038132,-480.0,0.00019178,2]
[365421943,1749663038141,-480.0,0.00019178,2]
[365421945,1749663038151,-490.0,0.00019178,2]
[365421946,1749663038159,-480.0,0.00019178,2]
[365421948,1749663038169,-172.30645119,0.00019178,2]
[365421950,1749663038178,-490.0,0.00019178,2]
[365421952,1749663038187,-480.0,0.00019178,2]
[365421954,1749663038196,-490.0,0.00019178,2]
[365421956,1749663038205,-480.0,0.00019178,2]
[365421958,1749663038214,-460.0,0.00019178,2]
[365421960,1749663038223,-420.0,0.00019178,2]
[365421961,1749663038232,-490.0,0.00019178,2]
[365421963,1749663038241,-490.0,0.00019178,2]
[365421965,1749663038250,-490.0,0.00019178,2]
[365421967,1749663038259,-490.0,0.00019178,2]
[365421969,1749663038268,-490.0,0.00019178,2]
[365421971,1749663038277,-543.95829506,0.00019178,2]
[365421973,1749663038286,-480.0,0.00019178,2]
[365421975,1749663038296,-490.0,0.00019178,2]
[365421977,1749663038306,-490.0,0.00019178,2]
[365421979,1749663038315,-490.0,0.00019178,2]
[365421981,1749663038324,-480.0,0.00019178,2]
[365421983,1749663038333,-244.06716392,0.00019178,2]
[365421985,1749663038343,-490.0,0.00019178,2]
[365421987,1749663038352,-490.0,0.00019178,2]
[365421989,1749663038361,-480.0,0.00019178,2]
[365421991,1749663038370,-490.0,0.00019178,2]
[365421992,1749663038379,-490.0,0.00019178,2]
[365421994,1749663038388,-490.0,0.00019178,2]
[365421996,1749663038397,-490.0,0.00019178,2]
[365421998,1749663038407,-490.0,0.00019178,2]
[365422000,1749663038416,-490.0,0.00019178,2]
[365422002,1749663038426,-490.0,0.00019178,2]
[365422004,1749663038435,-385.72922742,0.00019178,2]
[365422006,1749663038444,-596.16,0.00019178,2]
[365422008,1749663038454,-490.0,0.00019178,2]
[365422010,1749663038463,-490.0,0.00019178,2]
[365422012,1749663038472,-223.21531887,0.00019178,2]
[365422014,1749663038481,-490.0,0.00019178,2]
[365422016,1749663038491,-490.0,0.00019178,2]
[365422018,1749663038500,-490.0,0.00019178,2]
[365422020,1749663038509,-490.0,0.00019178,2]
[365422022,1749663038518,-490.0,0.00019178,2]
[365422024,1749663038529,-490.0,0.00019178,2]
[365422026,1749663038539,-490.0,0.00019178,2]
[365422028,1749663038548,-490.0,0.00019178,2]
[365422030,1749663038556,-490.0,0.00019178,2]
[365422032,1749663038565,-490.0,0.00019178,2]
[365422034,1749663038574,-490.0,0.00019178,2]
[365422035,1749663038583,-490.0,0.00019178,2]
[365422037,1749663038592,-490.0,0.00019178,2]
[365422039,1749663038602,-490.0,0.00019178,2]
[365422041,1749663038611,-480.0,0.00019178,2]
[365422043,1749663038620,-340.43287335,0.00019178,2]
[365422046,1749663038635,-149.56712665,0.00019178,2]
[365422048,1749663038644,-490.0,0.00019178,2]
[365422050,1749663038653,-317.37772655,0.00019178,2]
[365422052,1749663038664,-172.62227345,0.00019178,2]
[365422054,1749663038673,-490.0,0.00019178,2]
[365422056,1749663038683,-480.0,0.00019178,2]
[365422058,1749663038692,-490.0,0.00019178,2]
[365422060,1749663038701,-480.0,0.00019178,2]
[365422062,1749663038710,-490.0,0.00019178,2]
[365422064,1749663038719,-231.93163109,0.00019178,2]
[365422070,1749663038767,-258.06836891,0.00019178,2]
[365422072,1749663038778,-480.0,0.00019178,2]
[365422074,1749663038788,-86.8664906,0.00019178,2]
[365422082,1749663038856,-379.7366979,0.00019178,2]
[365422084,1749663038866,-41.5033021,0.00019178,2]
[365422091,1749663038928,-582.31132564,0.00019178,2]
[365422094,1749663038938,-490.0,0.00019178,2]
[365422095,1749663038947,-490.0,0.00019178,2]
[365422097,1749663038957,-688.42,0.00019178,2]
[365422099,1749663038966,-504.41940431,0.00019178,2]
[365422101,1749663038975,-622.28,0.00019178,2]
[365422103,1749663038984,-490.0,0.00019178,2]
[365422105,1749663038993,-107.17761042,0.00019178,2]
[365422108,1749663039005,-372.82238958,0.00019178,2]
[365422109,1749663039014,-323.59759542,0.00019178,2]
[365422169,1749663039565,-156.40240458,0.00019178,2]
[365422171,1749663039576,-480.0,0.00019178,2]
[365422173,1749663039585,-263.00349631,0.00019178,2]
[365422175,1749663039597,-226.99650369,0.00019178,2]
[365422177,1749663039607,-252.95431897,0.00019178,2]
[365422179,1749663039616,-202.65440918,0.00019178,2]
[365422181,1749663039628,-287.34559082,0.00019178,2]
[365422183,1749663039637,-490.0,0.00019178,2]
[365422185,1749663039647,-257.00940918,0.00019178,2]
[365422187,1749663039658,-172.38551529,0.00019178,2]
[365422189,1749663039667,-490.0,0.00019178,2]
[365422191,1749663039677,-480.0,0.00019178,2]
[365422193,1749663039686,-424.05378161,0.00019178,2]
[365422195,1749663039695,-480.0,0.00019178,2]
[365422197,1749663039705,-490.0,0.00019178,2]
[365422199,1749663039714,-490.0,0.00019178,2]
[365422201,1749663039724,-524.14,0.00019178,2]
[365422203,1749663039733,-490.0,0.00019178,2]
[365422205,1749663039743,-490.0,0.00019178,2]
[365422208,1749663039752,-490.0,0.00019178,2]
[365422209,1749663039762,-543.62767795,0.00019178,2]
[365422212,1749663039772,-490.0,0.00019178,2]
[365422214,1749663039784,-169.74421417,0.00019178,2]
[365422216,1749663039796,-360.89578583,0.00019178,2]
[365422218,1749663039805,-139.10421417,0.00019178,2]
[365422220,1749663039817,-286.44690207,0.00019178,2]
[365422222,1749663039827,-291.01515731,0.00019178,2]
[365422224,1749663039838,-198.98484269,0.00019178,2]
[365422226,1749663039847,-598.66579928,0.00019178,2]
[365422235,1749663039926,-247.12420072,0.00019178,2]
[365422237,1749663039936,-480.0,0.00019178,2]
[365422239,1749663039945,-490.0,0.00019178,2]
[365422240,1749663039955,-480.0,0.00019178,2]
[365422241,1749663039965,-145.32348835,0.00019178,2]
[365422242,1749663039979,-420.62471071,0.00019178,2]
[365422243,1749663039988,-480.0,0.00019178,2]
[365422244,1749663039998,-490.0,0.00019178,2]
[365422245,1749663040007,-131.87528917,0.00019178,2]
[365422246,1749663040020,-348.12471083,0.00019178,2]
[365422247,1749663040030,-401.49403915,0.00019178,2]
[365422248,1749663040041,-88.50596085,0.00019178,2]
[365422249,1749663040051,-480.0,0.00019178,2]
[365422251,1749663040060,-490.0,0.00019178,2]
[365422253,1749663040070,-490.0,0.00019178,2]
[365422255,1749663040079,-210.70066138,0.00019178,2]
[365422257,1749663040089,-490.0,0.00019178,2]
[365422259,1749663040101,-420.0,0.00019178,2]
[365422261,1749663040110,-615.76,0.00019178,2]
[365422263,1749663040120,-217.9582109,0.00019178,2]
[365422265,1749663040133,-272.0417891,0.00019178,2]
[365422267,1749663040145,-134.9151209,0.00019178,2]
[365422270,1749663040157,-355.0848791,0.00019178,2]
[365422272,1749663040167,-490.0,0.00019178,2]
[365422274,1749663040176,-490.0,0.00019178,2]
[365422276,1749663040185,-480.0,0.00019178,2]
[365422278,1749663040194,-809.96,0.00019178,2]
[365422280,1749663040203,-490.0,0.00019178,2]
[365422282,1749663040212,-490.0,0.00019178,2]
[365422284,1749663040221,-490.0,0.00019178,2]
[365422286,1749663040231,-490.0,0.00019178,2]
[365422288,1749663040240,-490.0,0.00019178,2]
[365422290,1749663040251,-490.0,0.00019178,2]
[365422292,1749663040260,-715.16,0.00019178,2]
[365422294,1749663040269,-490.0,0.00019178,2]
[365422296,1749663040279,-490.0,0.00019178,2]
[365422298,1749663040288,-490.0,0.00019178,2]
[365422300,1749663040298,-490.0,0.00019178,2]
[365422302,1749663040308,-480.0,0.00019178,2]
[365422304,1749663040318,-553.05,0.00019178,2]
[365422306,1749663040327,-490.0,0.00019178,2]
[365422308,1749663040336,-481.75873149,0.00019178,2]
[365422310,1749663040345,-420.0,0.00019178,2]
[365422312,1749663040355,-480.0,0.00019178,2]
[365422314,1749663040364,-490.0,0.00019178,2]
[365422316,1749663040374,-490.0,0.00019178,2]
[365422318,1749663040383,-490.0,0.00019178,2]
[365422320,1749663040393,-480.0,0.00019178,2]
[365422322,1749663040403,-490.0,0.00019178,2]
[365422324,1749663040412,-490.0,0.00019178,2]
[365422326,1749663040422,-490.0,0.00019178,2]
[365422328,1749663040431,-490.0,0.00019178,2]
[365422330,1749663040441,-880.45,0.00019178,2]
[365422332,1749663040450,-480.0,0.00019178,2]
[365422334,1749663040460,-490.0,0.00019178,2]
[365422336,1749663040469,-480.0,0.00019178,2]
[365422338,1749663040478,-490.0,0.00019178,2]
[365422340,1749663040487,-490.0,0.00019178,2]
[365422342,1749663040497,-490.0,0.00019178,2]
[365422344,1749663040507,-490.0,0.00019178,2]
[365422346,1749663040516,-490.0,0.00019178,2]
[365422348,1749663040525,-490.0,0.00019178,2]
[365422350,1749663040535,-490.0,0.00019178,2]
[365422352,1749663040546,-490.0,0.00019178,2]
[365422354,1749663040555,-490.0,0.00019178,2]
[365422356,1749663040565,-490.0,0.00019178,2]
[365422358,1749663040575,-490.0,0.00019178,2]
[365422360,1749663040584,-490.0,0.00019178,2]
[365422362,1749663040593,-490.0,0.00019178,2]
[365422363,1749663040603,-490.0,0.00019178,2]
[365422366,1749663040613,-480.0,0.00019178,2]
[365422368,1749663040622,-626.49199284,0.00019178,2]
[365422369,1749663040631,-490.0,0.00019178,2]
[365422371,1749663040641,-490.0,0.00019178,2]
[365422373,1749663040650,-655.87,0.00019178,2]